bitfinex-derivatives/quotes_ETHF0:USTF0_20250224
["timestamp","ask_amount","ask_price","bid_price","bid_amount"]
[1740375846974,0.06101464,2729.7,2729.3,3.2078]
[1740375846975,3.1389,2729.8,2729.3,3.2078]
[1740375847181,0.06101237,2729.7,2729.3,3.2078]
[1740375848676,3.7016,2729.8,2729.4,0.52850765]
[1740375848978,3.7016,2729.8,2729.3,3.2078]
[1740375851784,0.62821143,2729.7,2729.3,3.2078]
[1740375852083,0.06101568,2729.6,2729.1,0.5713]
[1740375852281,0.5672,2729.7,2729.3,3.2078]
[1740375852781,0.5672,2729.7,2729.3,3.94048]
[1740375852981,0.5672,2729.7,2729.3,3.2078]
[1740375853184,0.06101088,2729.6,2729.3,3.2078]
[1740375854089,0.5672,2729.7,2729.3,3.2078]
[1740375855982,0.06101573,2729.6,2729.3,3.2078]
[1740375858685,2.572,2729.5,2729.3,3.2078]
[1740375859282,0.5627,2729.8,2729.3,3.2078]
[1740375859582,2.572,2729.7,2729.3,3.94049]
[1740375859782,2.572,2729.7,2729.3,3.2078]
[1740375861383,3.1337,2729.8,2729.3,3.2078]
[1740375861581,3.1337,2729.8,2729.4,0.73266]
[1740375861785,3.1337,2729.8,2729.3,3.94048]
[1740375862586,3.1337,2729.8,2729.3,3.2078]
[1740375862986,3.1337,2729.8,2729.3,3.94049]
[1740375863784,3.1337,2729.8,2729.3,3.2078]
[1740375864092,3.1337,2729.8,2729.3,3.94048]
[1740375864293,3.1337,2729.8,2729.5,0.73263]
[1740375864797,0.5627,2729.8,2729.6,0.5577]
[1740375864988,0.00550519,2729.9,2729.8,0.73256]
[1740375865386,2.571,2730.3,2730.1,0.73247]
[1740375865585,2.571,2730.4,2730.2,0.5577]
[1740375866086,0.5548,2730.5,2730.3,0.73243]
[1740375866294,0.5485,2731.1,2730.4,3.73465425]
[1740375866489,0.00549501,2730.7,2730.4,3.2078]
[1740375867288,0.00549501,2730.7,2730.2,1.128]
[1740375867483,0.00549501,2730.7,2730.6,0.73235]
[1740375867691,3.2078,2731.7,2730.6,0.52653204]
[1740375867890,0.557,2731.5,2730.7,5.03951315]
[1740375868090,0.557,2731.5,2730.7,0.5729]
[1740375868392,2.57,2731.4,2730.7,4.51301]
[1740375868596,2.57,2731.4,2730.7,3.7807]
[1740375868798,0.00549501,2731.3,2730.8,0.00549501]
[1740375868995,2.57,2731.2,2730.8,0.00549501]
[1740375869190,0.5727,2731.1,2730.8,0.00549501]
[1740375870096,0.5333,2731.0,2730.3,3.2078]
[1740375870300,3.2078,2730.8,2730.3,3.2078]
[1740375870488,2.57,2730.7,2730.1,0.5729]
[1740375870693,2.57,2730.7,2730.2,3.2078]
[1740375870999,0.5791,2730.6,2730.2,3.2078]
[1740375873296,0.5791,2730.6,2730.1,0.57839501]
[1740375873498,0.5278,2730.5,2730.1,0.57839501]
[1740375874193,0.5278,2730.5,2730.3,0.73242]
[1740375874399,0.5278,2730.5,2730.1,3.78619501]
[1740375874900,0.5278,2730.5,2730.2,0.73244]
[1740375875101,2.57,2730.7,2730.1,3.78619501]
[1740375875498,3.2078,2730.8,2730.2,1.26578679]
[1740375875796,2.569,2730.7,2730.2,0.73244]
[1740375876201,2.569,2730.7,2730.1,3.78619501]
[1740375876599,2.569,2730.7,2730.2,0.73244]
[1740375876801,3.2078,2730.8,2730.1,3.78619501]
[1740375877000,1.1469,2730.9,2730.7,3.2078]
[1740375877200,3.7159,2730.9,2730.8,0.5643]
[1740375877406,3.7159,2730.9,2730.3,3.7533]
[1740375877705,3.7159,2730.9,2730.4,0.5643]
[1740375877706,6.9237,2730.9,2730.4,0.5643]
[1740375878306,0.06098784,2730.8,2730.4,0.5643]
[1740375879505,0.06098784,2730.8,2730.3,3.2078]
[1740375880204,3.2078,2730.4,2730.1,0.56979501]
[1740375880404,3.7034,2730.3,2730.1,0.56979501]
[1740375882003,3.1261,2730.3,2730.1,0.56979501]
[1740375884308,0.5773,2730.6,2730.1,1.30227501]
[1740375884512,2.569,2730.4,2730.1,0.56979501]
[1740375885305,2.569,2730.4,2730.1,1.30226501]
[1740375885503,2.569,2730.4,2730.2,0.53361021]
[1740375885704,2.569,2730.4,2730.2,0.5559]
[1740375887310,2.569,2730.4,2730.3,0.53411026]
[1740375887616,2.569,2730.4,2730.3,1.26654026]
[1740375887799,2.569,2730.4,2730.3,3.94023]
[1740375888000,0.5333,2731.0,2730.6,0.73233]
[1740375888205,0.5333,2731.0,2730.6,3.2078]
[1740375888206,3.1313,2730.9,2730.6,3.2078]
[1740375888410,0.5623,2730.9,2730.7,0.5705]
[1740375889006,2.569,2731.1,2731.0,0.73224]
[1740375889212,2.569,2731.1,2730.9,3.2078]
[1740375891908,2.569,2731.1,2730.7,3.7783]
[1740375892917,0.06098204,2731.0,2730.7,3.2078]
[1740375893315,0.5278,2730.9,2730.7,3.2078]
[1740375893719,0.5278,2730.9,2730.2,3.2078]
[1740375893720,0.63828982,2730.8,2730.2,3.2078]
[1740375894015,3.17818982,2730.7,2730.3,0.53530465]
[1740375894219,0.06098982,2730.6,2730.1,3.21329501]
[1740375894518,0.06098982,2730.6,2730.2,0.53554823]
[1740375894711,0.06098982,2730.6,2730.1,0.00549501]
[1740375894916,0.06098982,2730.6,2730.2,0.53545176]
[1740375895221,0.06098982,2730.6,2730.3,0.53565684]
[1740375895520,0.06098982,2730.6,2730.1,0.00549501]
[1740375895720,0.06098982,2730.6,2730.2,0.53563878]
[1740375896017,0.06098982,2730.6,2730.1,0.00549501]
[1740375896018,0.06098982,2730.6,2730.3,0.53563878]
[1740375896219,2.568,2730.5,2730.4,0.53563878]
[1740375896822,2.568,2730.5,2730.1,3.21329501]
[1740375897017,2.568,2730.5,2730.2,0.5356271]
[1740375897318,2.568,2730.5,2730.3,0.5356271]
[1740375897621,2.568,2730.5,2730.1,3.21329501]
[1740375897817,2.568,2730.5,2730.2,0.53551602]
[1740375898118,2.568,2730.5,2730.3,0.53553664]
[1740375898318,2.568,2730.5,2730.4,0.53553664]
[1740375898520,2.568,2730.5,2730.4,0.53561354]
[1740375898718,3.757,2730.7,2730.4,0.53561354]
[1740375899019,2.568,2730.6,2730.1,3.21329501]
[1740375899217,2.568,2730.6,2730.2,0.5357017]
[1740375899419,2.568,2730.6,2730.3,0.5357017]
[1740375899618,2.568,2730.6,2730.4,0.5357017]
[1740375899918,2.568,2730.6,2730.1,3.21329501]
[1740375900216,2.568,2730.6,2730.2,0.53574588]
[1740375900418,2.568,2730.6,2730.3,0.53574588]
[1740375900613,2.568,2730.6,2730.1,3.21329501]
[1740375900821,2.568,2730.6,2730.2,0.53577277]
[1740375901117,0.5492,2730.7,2730.4,3.2078]
[1740375901323,2.568,2730.6,2730.4,3.2078]
[1740375901521,2.568,2730.6,2730.5,0.53557072]
[1740375901919,2.568,2730.6,2730.5,0.53556066]
[1740375902323,0.5492,2730.7,2730.5,0.53556066]
[1740375902520,2.568,2730.6,2730.4,3.2078]
[1740375902716,2.568,2730.6,2730.5,0.53544957]
[1740375903018,0.5492,2730.7,2730.5,0.53544957]
[1740375903325,0.5492,2730.7,2730.6,0.53536635]
[1740375903326,3.1172,2730.7,2730.6,0.53536635]
[1740375904018,2.568,2730.7,2730.6,1.26771635]
[1740375904325,2.568,2730.7,2730.6,0.53536635]
[1740375905325,2.568,2730.7,2730.4,3.2078]
[1740375905326,2.568,2730.7,2730.1,3.21329501]
[1740375905624,0.5286,2730.6,2730.2,0.5357085]
[1740375905819,0.5475,2730.5,2730.1,3.21329501]
[1740375906022,0.5475,2730.5,2730.2,0.53561658]
[1740375906327,0.5475,2730.5,2730.3,0.53561658]
[1740375906527,0.5475,2730.5,2730.4,0.53561658]
[1740375907329,0.5475,2730.5,2730.4,0.5354814]
[1740375909325,0.5475,2730.5,2730.4,0.53542006]
[1740375909528,3.1145,2730.5,2730.4,4.47562006]
[1740375909837,3.1145,2730.5,2730.4,3.74322006]
[1740375911129,0.5475,2730.5,2730.4,3.74322006]
[1740375911329,2.567,2730.6,2730.4,3.74322006]
[1740375911631,2.567,2730.6,2730.5,0.53542006]
[1740375913329,2.567,2730.6,2730.5,0.53503819]
[1740375914032,2.567,2730.6,2730.5,0.53496894]
[1740375915437,2.567,2730.6,2730.5,0.5348411]
[1740375917541,2.56972061,2730.6,2730.5,0.5348411]
[1740375919237,2.56972061,2730.6,2730.4,3.2078]
[1740375919437,2.56972061,2730.6,2730.5,0.53516575]
[1740375921944,2.56972061,2730.6,2730.5,0.53568798]
[1740375923348,2.56972061,2730.6,2730.5,0.53584818]
[1740375925442,2.56972061,2730.6,2730.5,0.53583015]
[1740375926643,6.1e-07,2730.6,2730.5,7.26820015]
[1740375926845,6.1e-07,2730.6,2730.5,7.79680015]
[1740375927152,6.1e-07,2730.6,2730.5,1.79680015]
[1740375927451,6.1e-07,2730.6,2730.5,1.79611511]
[1740375927846,6.1e-07,2730.6,2730.5,0.53514511]
[1740375929552,6.1e-07,2730.6,2730.5,0.52647883]
[1740375929946,6.1e-07,2730.6,2730.5,0.52643962]
[1740375931353,6.1e-07,2730.6,2730.5,1.25880962]
[1740375933047,6.1e-07,2730.6,2730.5,7.25880962]
[1740375933253,0.00549501,2731.3,2731.2,0.73219]
[1740375933548,0.00549501,2731.3,2731.2,4.46642962]
[1740375934056,0.00549501,2731.3,2731.2,3.73423962]
[1740375935254,0.00549501,2731.3,2731.2,3.7439082]
[1740375935951,2.84549503,2732.1,2731.2,3.7439082]
[1740375936155,2.84549503,2732.1,2730.9,1.6602]
[1740375936156,0.5681,2731.9,2731.5,3.2078]
[1740375936457,0.5681,2731.9,2731.6,0.53559158]
[1740375936658,0.5681,2731.9,2731.5,3.2078]
[1740375937152,3.2078,2731.7,2731.4,0.00549501]
[1740375937350,2.62596689,2731.6,2731.4,0.00549501]
[1740375937550,0.5386,2731.5,2731.4,0.00549501]
[1740375937756,1.13176986,2731.5,2731.4,0.00549501]
[1740375938147,1.13176986,2731.5,2730.6,3.2078]
[1740375938353,3.2078,2731.3,2730.7,0.53581891]
[1740375938554,2.565,2731.2,2730.8,0.53581891]
[1740375938755,2.565,2731.2,2730.9,0.53581891]
[1740375938956,2.565,2731.2,2731.0,0.53581891]
[1740375939148,2.565,2731.2,2730.8,0.5503]
[1740375939353,2.565,2731.2,2730.9,4.47602521]
[1740375939562,2.565,2731.2,2731.0,0.53596521]
[1740375939771,2.565,2731.2,2730.9,3.94004]
[1740375940067,3.6358,2731.5,2731.1,0.7322]
[1740375940253,3.48829503,2732.1,2731.2,3.74388294]
[1740375940455,2.62596383,2731.9,2731.3,0.53608294]
[1740375940656,2.565,2731.9,2731.4,0.53608294]
[1740375940853,2.565,2731.9,2731.0,0.5452]
[1740375940854,2.565,2731.9,2731.6,3.93988]
[1740375941154,2.565,2731.9,2731.6,3.2078]
[1740375941361,0.00549501,2732.0,2731.9,0.732]
[1740375941663,0.00549501,2732.0,2731.9,4.47519823]
[1740375943156,0.00549501,2732.0,2731.9,3.9398]
[1740375943361,0.00549501,2732.0,2731.9,4.47443782]
[1740375944361,3.48355003,2733.0,2732.3,0.73188]
[1740375944661,0.06093644,2732.9,2732.4,0.5279]
[1740375945363,0.06643145,2732.9,2732.4,0.53339501]
[1740375945660,0.06094487,2732.8,2732.0,0.42612075]
[1740375945850,3.2078,2732.7,2732.0,0.42612075]
[1740375946053,2.62494487,2732.6,2732.0,0.42612075]
[1740375946267,0.62744487,2732.5,2732.0,0.42612075]
[1740375946560,0.5665,2732.5,2732.0,0.42612075]
[1740375946761,0.5665,2732.5,2732.0,0.43161576]
[1740375947953,3.82734977,2732.4,2732.0,0.00549501]
[1740375948261,0.06094977,2732.3,2732.0,0.00549501]
[1740375948561,3.2078,2732.1,2732.0,0.00549501]
[1740375948764,3.26874977,2732.1,2732.0,0.00549501]
[1740375948967,3.17575593,2732.1,2732.0,0.00549501]
[1740375949164,3.17575746,2732.1,2732.0,0.00549501]
[1740375949566,6.38355746,2732.1,2732.0,0.00549501]
[1740375950370,0.5508,2732.1,2732.0,0.00549501]
[1740375953470,3.7586,2732.1,2732.0,0.00549501]
[1740375953669,3.81955658,2732.1,2732.0,0.00549501]
[1740375953872,3.81955719,2732.1,2731.6,3.2078]
[1740375954072,0.06095719,2732.0,2731.4,0.5786]
[1740375954370,3.7586,2732.1,2731.4,3.7864]
[1740375954760,0.06095936,2732.0,2731.4,3.7864]
[1740375955172,0.06095936,2732.0,2731.4,3.79189501]
[1740375955867,3.2078,2731.7,2731.4,0.00549501]
[1740375956076,3.77617178,2731.6,2731.0,3.2078]
[1740375956372,0.06097164,2731.5,2731.0,3.2078]
[1740375956572,3.2078,2731.4,2731.0,3.2078]
[1740375958171,3.2078,2731.4,2730.9,0.00549501]
[1740375958365,2.563,2731.3,2730.9,0.00549501]
[1740375959072,0.06097935,2731.2,2730.3,3.2078]
[1740375959272,3.04797935,2731.2,2730.4,0.53635593]
[1740375959469,2.563,2731.1,2730.5,0.53635593]
[1740375959671,3.1447,2731.1,2730.6,0.53635593]
[1740375959875,3.2078,2730.9,2730.3,3.2078]
[1740375960173,0.535,2730.8,2730.4,0.53624911]
[1740375960473,0.535,2730.8,2730.3,3.21146674]
[1740375960474,2.563,2730.7,2730.3,3.21146674]
[1740375960877,0.5817,2730.6,2730.3,3.21146674]
[1740375961075,0.5817,2730.6,2730.3,0.00366674]
[1740375961276,3.7895,2730.6,2730.3,0.00366674]
[1740375962280,0.5696,2730.5,2730.3,0.00366674]
[1740375964780,2.563,2730.4,2730.3,0.00366674]
[1740375967276,2.563,2730.4,2730.3,0.56366674]
[1740375968484,2.62399422,2730.4,2729.8,0.5275]
[1740375968781,2.563,2730.4,2729.8,0.5275]
[1740375968982,0.06099944,2730.3,2729.8,0.5275]
[1740375969384,0.5762,2730.2,2729.6,3.2078]
[1740375969584,3.784,2730.2,2729.6,3.2078]
[1740375969781,0.5818,2730.1,2729.6,3.2078]
[1740375969974,0.5696,2730.5,2729.9,3.2078]
[1740375970289,2.563,2730.4,2730.2,3.2078]
[1740375970585,2.563,2730.3,2730.2,3.2078]
[1740375971089,2.56849501,2730.5,2730.2,3.2078]
[1740375971381,2.56849501,2730.5,2730.3,0.73241]
[1740375971685,2.56849501,2730.5,2730.2,3.2078]
[1740375972093,0.00549501,2730.5,2730.2,3.2078]
[1740375972275,0.00549501,2730.5,2730.4,0.7324]
[1740375972477,2.563,2731.1,2730.8,0.73228]
[1740375972689,0.5452,2731.4,2730.9,0.5259]
[1740375972985,2.563,2731.2,2730.9,0.5259]
[1740375973378,0.5452,2731.4,2730.9,0.5259]
[1740375973683,2.56849501,2731.3,2731.1,3.2078]
[1740375976385,2.56849501,2731.3,2730.9,0.5259]
[1740375976982,0.06097746,2731.2,2730.8,0.00549501]
[1740375977384,0.5477,2731.1,2730.8,0.00549501]
[1740375977686,3.84787746,2731.0,2730.2,0.548]
[1740375977883,2.62397746,2730.9,2730.2,0.548]
[1740375978084,0.06097746,2730.8,2730.2,0.548]
[1740375978580,0.06097746,2730.8,2729.9,3.2078]
[1740375978781,3.2078,2730.7,2730.0,0.53514773]
[1740375978977,3.2078,2730.7,2729.9,3.2078]
[1740375979177,0.06099118,2730.6,2730.0,0.53514274]
[1740375979481,2.563,2730.5,2729.9,3.2078]
[1740375979686,0.5791,2730.4,2730.0,0.53516619]
[1740375979875,0.5791,2730.4,2729.9,3.2078]
[1740375980082,0.5791,2730.4,2730.0,0.53518553]
[1740375980385,0.5791,2730.4,2729.9,3.94033]
[1740375980582,0.5791,2730.4,2730.0,0.53531806]
[1740375980886,1.1341,2730.4,2729.9,3.2078]
[1740375981283,4.3419,2730.4,2729.8,0.5802]
[1740375981484,4.3419,2730.4,2729.9,3.74361303]
[1740375981783,4.3419,2730.4,2729.9,3.2078]
[1740375982185,4.3419,2730.4,2729.8,1.31275]
[1740375982387,4.3419,2730.4,2729.9,0.53600741]
[1740375982584,4.3419,2730.4,2729.8,0.5802]
[1740375982790,4.3419,2730.4,2729.9,0.53596699]
[1740375982987,4.3419,2730.4,2729.8,0.5802]
[1740375983286,4.3419,2730.4,2729.9,0.53592298]
[1740375983485,4.3419,2730.4,2729.8,0.5802]
[1740375983680,0.06100017,2730.3,2729.8,0.5802]
[1740375984081,0.06100017,2730.3,2729.6,3.2078]
[1740375984391,0.06100017,2730.3,2729.7,0.53599926]
[1740375984586,0.06100017,2730.3,2729.8,0.53624261]
[1740375984785,3.2078,2730.1,2729.3,3.7498]
[1740375984986,2.563,2730.0,2729.5,0.73263]
[1740375985185,3.1248,2730.0,2729.6,0.5363934]
[1740375985386,3.1248,2730.0,2729.3,3.7498]
[1740375985586,3.1248,2730.0,2729.4,0.53648572]
[1740375985888,3.2078,2729.8,2729.5,0.53648572]
[1740375986189,1.0827,2729.7,2729.3,3.7498]
[1740375986385,2.563,2729.6,2729.4,0.53678787]
[1740375986582,2.563,2729.6,2729.3,3.7498]
[1740375988187,2.563,2729.6,2729.4,0.53664972]
[1740375988391,2.563,2729.6,2729.3,4.48247]
[1740375988693,2.563,2729.6,2729.3,3.7498]
[1740375989082,2.563,2729.6,2729.3,4.48248]
[1740375989283,2.563,2729.6,2729.3,3.2078]
[1740375989988,2.563,2729.6,2729.4,0.73265]
[1740375990190,2.563,2729.6,2729.3,3.2078]
[1740375990688,2.563,2729.6,2729.3,3.94049]
[1740375990991,2.563,2729.6,2729.3,3.2078]
[1740375991294,2.563,2729.6,2729.3,3.94048]
[1740375991486,2.563,2729.6,2729.3,3.2078]
[1740375991685,0.5745,2729.5,2729.3,3.2078]
[1740375994087,0.5745,2729.5,2729.0,0.73277]
[1740375994294,0.5745,2729.5,2728.9,3.7365]
[1740375994487,0.5745,2729.5,2729.0,1.26855251]
[1740375994683,0.5745,2729.5,2728.9,3.7365]
[1740375994888,0.5745,2729.5,2729.0,0.53574863]
[1740375995089,0.5745,2729.5,2729.0,0.73277]
[1740375995788,0.5745,2729.5,2728.9,3.7365]
[1740375995789,3.7823,2729.5,2728.9,3.7365]
[1740375995987,3.7823,2729.5,2729.0,2.36756108]
[1740375995988,0.5745,2729.5,2729.0,2.36756108]
[1740375996188,0.5745,2729.5,2728.9,3.7365]
[1740375996389,0.5745,2729.5,2729.1,0.73274]
[1740375996591,0.5745,2729.5,2728.9,3.7365]
[1740375996789,0.5745,2729.5,2729.2,0.73272]
[1740375997594,0.5745,2729.5,2728.9,5.56851]
[1740375997898,0.5745,2729.5,2729.0,0.53545581]
[1740375998101,1.0827,2729.7,2729.6,0.73262]
[1740375998293,0.535,2730.0,2729.6,3.94042]
[1740375998596,0.00549501,2730.1,2729.4,1.83166]
[1740375998597,0.00549501,2730.1,2729.9,3.2078]
[1740375998796,0.00549501,2730.1,2730.0,0.73251]
[1740375998993,2.56849501,2730.1,2730.0,0.73251]
[1740375999393,2.56849501,2730.1,2729.5,4.49083]
[1740375999594,2.56849501,2730.1,2729.6,0.53508625]
[1740375999793,3.2078,2729.9,2729.5,3.2078]
[1740375999997,2.56849501,2730.1,2729.2,3.2078]
[1740376000293,3.7441,2729.8,2729.3,0.53537938]
[1740376000492,3.1175,2729.7,2729.2,3.94052]
[1740376000687,3.1175,2729.7,2729.6,0.73262]
[1740376000892,2.563,2729.7,2729.6,0.73262]
[1740376001089,0.5363,2729.8,2729.7,0.73259]
[1740376001291,3.0993,2729.8,2729.6,0.5638]
[1740376001497,3.0993,2729.8,2729.6,1.2964]
[1740376003098,3.0993,2729.8,2729.6,0.5638]
[1740376005101,6.3071,2729.8,2729.1,3.94055]
[1740376005402,0.5483,2729.7,2729.2,0.53633322]
[1740376005602,0.5483,2729.7,2729.3,0.53633322]
[1740376005802,0.5483,2729.7,2729.1,3.7765]
[1740376005999,0.5766,2729.6,2729.2,0.53639108]
[1740376006192,0.5766,2729.6,2729.3,0.5368961]
[1740376006398,0.5766,2729.6,2729.1,3.7765]
[1740376006597,0.5766,2729.6,2729.2,0.53687047]
[1740376006809,0.5766,2729.6,2729.3,0.53687047]
[1740376007006,0.5766,2729.6,2729.1,3.7765]
[1740376007199,0.5766,2729.6,2729.2,0.53689758]
[1740376007398,0.5766,2729.6,2729.1,3.7765]
[1740376007604,0.5766,2729.6,2729.2,0.537164]
[1740376007807,0.5766,2729.6,2729.1,3.7765]
[1740376008105,3.26882014,2729.5,2728.7,3.2078]
[1740376008301,2.62302014,2729.4,2728.8,0.53733612]
[1740376008604,0.06102014,2729.3,2728.9,0.53743456]
[1740376008803,0.5386,2729.3,2729.0,0.53735774]
[1740376009003,2.562,2729.4,2729.1,0.53736141]
[1740376009212,2.562,2729.4,2729.2,1.07524844]
[1740376009507,2.562,2729.4,2729.2,1.27052]
[1740376009703,2.562,2729.4,2729.2,0.5378]
[1740376009903,2.562,2729.4,2729.2,1.27051]
[1740376010102,2.562,2729.4,2729.2,0.5378]
[1740376010306,2.562,2729.4,2729.2,1.27051]
[1740376010601,2.562,2729.4,2729.2,0.5378]
[1740376013103,3.21329501,2730.1,2729.5,0.73263]
[1740376013311,4.28911204,2730.0,2729.5,0.73263]
[1740376013605,0.06101204,2729.9,2729.5,0.73263]
[1740376014006,0.06101204,2729.9,2729.6,0.53808874]
[1740376014311,0.06101204,2729.9,2729.5,0.73262]
[1740376014604,0.06101204,2729.9,2729.4,0.73266]
[1740376014805,0.06101204,2729.9,2729.5,0.53834136]
[1740376015001,3.2078,2729.8,2729.4,0.73266]
[1740376015201,3.2078,2729.8,2729.5,0.53840223]
[1740376015509,0.06101124,2729.7,2729.2,0.5378]
[1740376015708,2.562,2729.6,2729.3,0.53857333]
[1740376016006,2.562,2729.6,2729.2,1.27052]
[1740376016007,2.562,2729.6,2729.4,0.53857333]
[1740376016305,2.562,2729.6,2729.5,0.53857333]
[1740376016709,2.562,2729.6,2729.5,0.53871667]
[1740376016911,2.62301347,2729.6,2729.2,1.27052]
[1740376017203,0.5724,2729.5,2729.3,0.53877814]
[1740376017508,0.5724,2729.5,2729.4,0.53877814]
[1740376017906,0.63341774,2729.5,2729.2,0.5378]
[1740376018109,0.565,2729.4,2729.3,0.53914629]
[1740376018310,1.0931,2729.4,2729.3,0.53914629]
[1740376018810,1.0931,2729.4,2729.3,0.53913473]
[1740376020005,1.0931,2729.4,2729.2,0.5378]
[1740376020212,1.0931,2729.4,2728.9,3.2078]
[1740376020411,1.0931,2729.4,2729.0,1.08783902]
[1740376020606,1.0931,2729.4,2729.1,0.53913902]
[1740376020807,1.0931,2729.4,2729.2,0.53913902]
[1740376021007,1.0931,2729.4,2729.0,0.5487]
[1740376021209,1.0931,2729.4,2729.1,0.53915841]
[1740376021409,1.0931,2729.4,2729.2,0.53915841]
[1740376021612,1.0931,2729.4,2729.0,1.28145]
[1740376021813,1.0931,2729.4,2729.1,0.53915519]
[1740376022004,1.0931,2729.4,2729.2,1.27185965]
[1740376022209,1.0931,2729.4,2729.3,1.2717743]
[1740376022409,0.565,2729.4,2729.3,1.2717743]
[1740376022620,0.5453,2729.8,2729.7,0.73259]
[1740376022912,0.58820892,2729.8,2729.7,0.73259]
[1740376023221,3.2078,2730.8,2730.0,0.73251]
[1740376023410,2.56649501,2730.1,2730.0,4.47896989]
[1740376024218,2.56649501,2730.1,2730.0,3.74645989]
[1740376024522,2.56649501,2730.1,2729.5,3.7565]
[1740376024728,3.2078,2729.9,2729.6,0.53872607]
[1740376025028,1.12819982,2729.8,2729.5,0.5487]
[1740376025227,2.561,2729.7,2729.2,3.2078]
[1740376025529,0.0610139,2729.6,2729.3,0.53882057]
[1740376025727,0.0610139,2729.6,2729.2,0.5556]
[1740376025924,0.5407,2729.5,2729.3,0.53891653]
[1740376026126,0.5407,2729.5,2729.2,0.5556]
[1740376026430,0.5407,2729.5,2728.9,3.2078]
[1740376026730,0.5407,2729.5,2729.0,0.53890835]
[1740376026921,0.5407,2729.5,2729.1,0.53890835]
[1740376027116,3.7485,2729.5,2729.2,0.53890835]
[1740376027322,3.7485,2729.5,2728.9,3.2078]
[1740376027522,0.5407,2729.5,2729.0,0.53861095]
[1740376027723,0.5407,2729.5,2729.1,0.53861095]
[1740376027929,0.5407,2729.5,2729.2,0.53864018]
[1740376027930,3.7485,2729.5,2729.2,0.53864018]
[1740376028124,3.7485,2729.5,2728.9,3.2078]
[1740376028326,0.06101917,2729.4,2729.0,0.53865738]
[1740376028525,2.561,2729.3,2728.9,3.2078]
[1740376028730,0.60612781,2729.2,2728.9,3.2078]
[1740376028931,0.5355,2729.1,2728.9,3.2078]
[1740376030324,0.5355,2729.1,2729.0,0.53841727]
[1740376030524,0.5355,2729.1,2729.0,0.53843454]
[1740376030723,0.5355,2729.1,2728.9,3.2078]
[1740376031422,0.5471,2729.0,2728.8,0.5582]
[1740376031626,2.561,2728.9,2728.6,3.2078]
[1740376031835,2.561,2728.9,2728.7,0.53850393]
[1740376032029,2.561,2728.9,2728.6,3.2078]
[1740376033130,3.2078,2728.8,2728.1,3.7413]
[1740376033429,0.00549501,2728.7,2728.2,0.53831973]
[1740376033732,0.00549501,2728.7,2728.3,0.53831973]
[1740376033931,0.00549501,2728.7,2728.4,0.53853516]
[1740376034129,0.06103948,2728.6,2728.1,3.7413]
[1740376034429,2.561,2728.5,2728.4,0.73294]
[1740376034634,2.561,2728.5,2728.4,1.27132181]
[1740376035729,0.00549501,2728.7,2728.6,0.73288]
[1740376036030,2.56649501,2728.7,2728.6,0.53820289]
[1740376036335,2.56649501,2728.7,2728.4,3.2078]
[1740376036633,2.56649501,2728.7,2728.5,1.85092163]
[1740376036829,2.56649501,2728.7,2728.5,0.5798]
[1740376038238,2.56649501,2728.7,2728.5,1.3127]
[1740376038435,2.56649501,2728.7,2728.5,0.5798]
[1740376039232,2.56649501,2728.7,2728.4,3.2078]
[1740376039543,2.56649501,2728.7,2728.6,0.73288]
[1740376039840,2.56649501,2728.7,2728.5,0.5495]
[1740376040733,2.56649501,2728.7,2728.4,3.2078]
[1740376040934,0.06104084,2728.6,2728.4,3.2078]
[1740376041432,1.19264255,2728.5,2728.4,3.2078]
[1740376041639,1.1316,2728.5,2728.4,3.2078]
[1740376042038,0.5649,2728.5,2728.4,3.94074]
[1740376042340,2.56649501,2728.7,2728.4,3.2078]
[1740376043438,2.56649501,2728.7,2728.5,0.5761]
[1740376043741,0.00549501,2728.7,2728.5,0.5761]
[1740376044041,2.561,2728.6,2728.5,0.5761]
[1740376045541,2.62204118,2728.6,2728.5,0.5761]
[1740376046544,2.561,2728.6,2728.4,3.2078]
[1740376052143,0.0610412,2728.5,2728.4,3.2078]
[1740376052844,2.561,2728.6,2728.4,3.2078]
[1740376060346,0.0610414,2728.5,2728.4,3.2078]
[1740376060552,2.561,2728.6,2728.4,3.74738051]
[1740376060852,2.561,2728.6,2728.4,3.2078]
[1740376063059,0.06104165,2728.5,2728.4,3.2078]
[1740376063253,2.561,2728.6,2728.4,3.74715086]
[1740376063551,2.561,2728.6,2728.4,3.2078]
[1740376064257,0.0610418,2728.5,2728.4,3.2078]
[1740376064457,0.0610418,2728.5,2728.4,3.74718954]
[1740376064757,0.0610418,2728.5,2728.4,3.74718633]
[1740376064957,0.0610418,2728.5,2728.4,0.53938633]
[1740376065658,2.561,2728.6,2728.4,0.53938633]
[1740376065861,2.561,2728.6,2728.2,0.547]
[1740376065862,0.06104355,2728.5,2728.2,0.547]
[1740376066359,3.2078,2728.3,2727.9,0.563]
[1740376066561,3.1015,2728.2,2728.0,0.53933714]
[1740376066759,3.1015,2728.2,2728.1,0.53933714]
[1740376067668,3.1015,2728.2,2728.1,0.53921785]
[1740376068158,3.1015,2728.2,2728.1,0.53921348]
[1740376070161,3.1015,2728.2,2728.1,0.53887863]
[1740376070866,3.16255211,2728.2,2727.8,3.7823]
[1740376071064,3.1015,2728.2,2727.9,0.53886065]
[1740376071264,3.1015,2728.2,2728.0,0.53886065]
[1740376071463,3.1015,2728.2,2727.8,3.7823]
[1740376071766,3.1015,2728.2,2727.9,0.53877415]
[1740376071965,0.06105263,2728.1,2727.8,0.5745]
[1740376072156,0.06105263,2728.1,2727.9,0.53884631]
[1740376072362,0.5367,2728.0,2727.8,0.5745]
[1740376072560,0.5402,2728.4,2727.8,0.5745]
[1740376072561,3.2078,2728.8,2728.2,0.73299]
[1740376072761,3.14835045,2728.6,2728.4,0.73294]
[1740376072961,0.06105045,2728.5,2728.3,1.29576]
[1740376073164,0.06105045,2728.5,2728.3,1.29575]
[1740376073367,0.06105045,2728.5,2728.4,0.73294]